bitfinex-derivatives/quotes_BTCF0:USTF0_20250921
["timestamp","ask_amount","ask_price","bid_price","bid_amount"]
[1758471000836,0.1844234,115570.0,115560.0,0.31433638]
[1758471001024,0.9669834,115570.0,115560.0,0.31433638]
[1758471002233,0.1844234,115570.0,115560.0,0.31433638]
[1758471002439,0.9669834,115570.0,115560.0,0.31433638]
[1758471006837,0.8960334,115570.0,115560.0,0.31433638]
[1758471008051,1.16782447,115570.0,115560.0,0.31433638]
[1758471010344,1.23877447,115570.0,115560.0,0.31433638]
[1758471011044,0.9669834,115570.0,115560.0,0.31433638]
[1758471016351,1.23877447,115570.0,115560.0,0.31433638]
[1758471017652,0.9669834,115570.0,115560.0,0.31433638]
[1758471017850,1.23877447,115570.0,115560.0,0.06433638]
[1758471018555,1.23880145,115570.0,115560.0,0.06433638]
[1758471027457,0.45624145,115570.0,115560.0,0.06433638]
[1758471027657,1.23876145,115570.0,115560.0,0.06433638]
[1758471056283,0.9669434,115570.0,115560.0,0.06433638]
[1758471056684,1.23876145,115570.0,115560.0,0.06433638]
[1758471062287,0.9669434,115570.0,115560.0,0.06433638]
[1758471062586,1.23876145,115570.0,115560.0,0.06433638]
[1758471073195,1.23876145,115570.0,115560.0,0.33615443]
[1758471073594,0.9669434,115570.0,115560.0,0.33615443]
[1758471073797,1.23876145,115570.0,115560.0,0.33615443]
[1758471075194,1.23876145,115570.0,115560.0,0.06433638]
[1758471075584,0.9669434,115570.0,115560.0,0.06433638]
[1758471075791,1.23876145,115570.0,115560.0,0.06433638]
[1758471077199,1.23876145,115570.0,115560.0,0.33615443]
[1758471080600,1.23871974,115570.0,115560.0,0.06433638]
[1758471094207,0.45619974,115570.0,115560.0,0.06433638]
[1758471094506,1.23875974,115570.0,115560.0,0.06433638]
[1758471111815,0.9669834,115570.0,115560.0,0.06433638]
[1758471112119,1.23875974,115570.0,115560.0,0.06433638]
[1758471113921,1.59955974,115570.0,115560.0,0.06433638]
[1758471116322,1.59955974,115570.0,115560.0,0.04706]
[1758471123931,1.3277834,115570.0,115560.0,0.04706]
[1758471124233,1.59955974,115570.0,115560.0,0.04706]
[1758471125836,1.61184974,115570.0,115560.0,0.0104]
[1758471126339,1.61184974,115570.0,115560.0,0.03271]
[1758471127233,1.3277834,115570.0,115560.0,0.03271]
[1758471127435,1.59955974,115570.0,115560.0,0.03271]
[1758471137449,1.3277834,115570.0,115560.0,0.03271]
[1758471137651,1.59955974,115570.0,115560.0,0.03271]
[1758471139351,1.3277834,115570.0,115560.0,0.03271]
[1758471139548,1.59955974,115570.0,115560.0,0.03271]
[1758471140057,1.61184974,115570.0,115560.0,0.03271]
[1758471140555,1.61186827,115570.0,115560.0,0.03271]
[1758471141254,1.3400734,115570.0,115560.0,0.03271]
[1758471141457,1.61186827,115570.0,115560.0,0.03271]
[1758471148760,1.3400734,115570.0,115560.0,0.03271]
[1758471148961,1.61186827,115570.0,115560.0,0.03271]
[1758471152262,1.3400734,115570.0,115560.0,0.03271]
[1758471152453,1.61186827,115570.0,115560.0,0.03271]
[1758471153963,1.61186827,115570.0,115560.0,0.30450487]
[1758471157462,1.61186827,115570.0,115560.0,0.30410487]
[1758471157862,1.3400734,115570.0,115560.0,0.30410487]
[1758471158063,1.61186827,115570.0,115560.0,0.30410487]
[1758471158861,1.61186827,115570.0,115560.0,0.03231]
[1758471159061,1.61186827,115570.0,115560.0,0.30410487]
[1758471162362,1.3400734,115570.0,115560.0,0.30410487]
[1758471162564,1.61186827,115570.0,115560.0,0.30410487]
[1758471165969,1.59957827,115570.0,115560.0,0.31746487]
[1758471170372,1.3277834,115570.0,115560.0,0.31746487]
[1758471170571,1.59957827,115570.0,115560.0,0.31746487]
[1758471171086,0.81701827,115570.0,115560.0,0.31746487]
[1758471171275,1.59941827,115570.0,115560.0,0.31746487]
[1758471172075,0.81701827,115570.0,115560.0,0.31746487]
[1758471172272,1.59941827,115570.0,115560.0,0.31746487]
[1758471175776,1.59941827,115570.0,115560.0,0.04567]
[1758471175969,1.59941827,115570.0,115560.0,0.31746487]
[1758471177476,1.3276234,115570.0,115560.0,0.31746487]
[1758471177677,1.59941827,115570.0,115560.0,0.31746487]
[1758471178481,1.59941827,115570.0,115560.0,0.04567]
[1758471178780,1.59941827,115570.0,115560.0,0.31746487]
[1758471180179,1.3276234,115570.0,115560.0,0.31746487]
[1758471180385,1.59941827,115570.0,115560.0,0.04567]
[1758471180575,1.59941827,115570.0,115560.0,0.31746487]
[1758471180881,1.3276234,115570.0,115560.0,0.31746487]
[1758471181082,1.59941827,115570.0,115560.0,0.31746487]
[1758471182984,1.59941827,115570.0,115560.0,0.04567]
[1758471183484,1.59941827,115570.0,115560.0,0.31746487]
[1758471183879,1.23861827,115570.0,115560.0,0.31746487]
[1758471184185,1.59941827,115570.0,115560.0,0.31746487]
[1758471185988,1.59941827,115570.0,115560.0,0.04567]
[1758471186188,1.59941827,115570.0,115560.0,0.31746487]
[1758471186490,1.59941827,115570.0,115560.0,0.04567]
[1758471186686,1.59941827,115570.0,115560.0,0.31746487]
[1758471187189,1.59941827,115570.0,115560.0,0.04567]
[1758471191401,1.62416837,115570.0,115560.0,0.04567]
[1758471191693,1.59941827,115570.0,115560.0,0.04567]
[1758471198003,1.3276234,115570.0,115560.0,0.04567]
[1758471198205,1.59941827,115570.0,115560.0,0.04567]
[1758471199904,1.59941827,115570.0,115560.0,0.31746487]
[1758471200094,1.3276234,115570.0,115560.0,0.31746487]
[1758471200294,1.59941827,115570.0,115560.0,0.31746487]
[1758471200703,1.59942253,115570.0,115560.0,0.04567]
[1758471209724,1.3276234,115570.0,115560.0,0.04567]
[1758471209913,1.59942253,115570.0,115560.0,0.04567]
[1758471213821,1.3275434,115570.0,115560.0,0.04567]
[1758471214019,1.3275434,115570.0,115560.0,0.31746913]
[1758471214322,1.59934253,115570.0,115560.0,0.04567]
[1758471215123,1.3275434,115570.0,115560.0,0.04567]
[1758471215529,1.59934253,115570.0,115560.0,0.04567]
[1758471215933,1.62409518,115570.0,115560.0,0.04567]
[1758471216430,1.55314518,115570.0,115560.0,0.04567]
[1758471219335,1.28134605,115570.0,115560.0,0.04567]
[1758471219634,1.55314518,115570.0,115560.0,0.04567]
[1758471223739,0.74607253,115570.0,115560.0,0.04567]
[1758471224049,1.52955253,115570.0,115560.0,0.04567]
[1758471230246,0.74607253,115570.0,115560.0,0.04567]
[1758471230549,1.52955253,115570.0,115560.0,0.04567]
[1758471232152,1.2577534,115570.0,115560.0,0.04567]
[1758471232350,1.52955253,115570.0,115560.0,0.04567]
[1758471238252,0.74607253,115570.0,115560.0,0.04567]
[1758471238549,1.52927253,115570.0,115560.0,0.04567]
[1758471242958,0.74607253,115570.0,115560.0,0.04567]
[1758471243159,1.52919253,115570.0,115560.0,0.04567]
[1758471243854,0.74607253,115570.0,115560.0,0.04567]
[1758471244351,1.52919253,115570.0,115560.0,0.04567]
[1758471244547,1.52915253,115570.0,115560.0,0.04567]
[1758471245252,1.52911253,115570.0,115560.0,0.04567]
[1758471246458,1.55383807,115570.0,115560.0,0.04567]
[1758471247860,0.77079807,115570.0,115560.0,0.04567]
[1758471248062,1.55395807,115570.0,115560.0,0.04567]
[1758471248466,0.77079807,115570.0,115560.0,0.04567]
[1758471248764,1.55395807,115570.0,115560.0,0.04567]
[1758471249664,1.55391807,115570.0,115560.0,0.04567]
[1758471252273,1.28211894,115570.0,115560.0,0.04567]
[1758471252474,1.55391807,115570.0,115560.0,0.04567]
[1758471254475,1.19311807,115570.0,115560.0,0.04567]
[1758471254674,1.55391807,115570.0,115560.0,0.04567]
[1758471256981,1.52899253,115570.0,115560.0,0.04567]
[1758471257580,0.74607253,115570.0,115560.0,0.04567]
[1758471257879,1.52891253,115570.0,115560.0,0.04567]
[1758471258178,0.74607253,115570.0,115560.0,0.04567]
[1758471258381,1.52891253,115570.0,115560.0,0.04567]
[1758471259774,1.55365903,115570.0,115560.0,0.04567]
[1758471261478,1.52891253,115570.0,115560.0,0.04567]
[1758471262080,1.55365899,115570.0,115560.0,0.04567]
[1758471262283,1.52891253,115570.0,115560.0,0.04567]
[1758471262680,1.55365157,115570.0,115560.0,0.31746173]
[1758471264082,1.55365157,115570.0,115560.0,0.04567]
[1758471264482,1.19285157,115570.0,115560.0,0.04567]
[1758471264784,1.55365157,115570.0,115560.0,0.04567]
[1758471268480,1.56594157,115570.0,115560.0,0.01]
[1758471270889,1.29414984,115570.0,115560.0,0.01]
[1758471271087,1.56594157,115570.0,115560.0,0.01]
[1758471271791,1.8377333,115570.0,115560.0,0.01]
[1758471271982,1.7269333,115570.0,115560.0,0.01]
[1758471272184,1.7269333,115570.0,115560.0,0.0104]
[1758471272385,2.4485333,115570.0,115560.0,0.0104]
[1758471272585,2.4485333,115570.0,115560.0,0.01]
[1758471272789,2.4485333,115570.0,115560.0,0.0104]
[1758471273496,1.90494984,115570.0,115560.0,0.0104]
[1758471273790,1.6656933,115570.0,115560.0,0.0104]
[1758471273985,2.4556933,115570.0,115560.0,0.0104]
[1758471276694,2.2056933,115570.0,115560.0,0.0104]
[1758471285994,2.2766433,115570.0,115560.0,0.0104]
[1758471300899,1.73305984,115570.0,115560.0,0.0104]
[1758471301207,2.2766433,115570.0,115560.0,0.0104]
[1758471306910,2.25189686,115570.0,115560.0,0.0104]
[1758471307217,2.27726511,115570.0,115560.0,0.0104]
[1758471308410,1.73368165,115570.0,115560.0,0.0104]
[1758471308610,2.27726511,115570.0,115560.0,0.0104]
[1758471318320,1.55566511,115570.0,115560.0,0.0104]
[1758471318533,1.48726511,115570.0,115560.0,0.0104]
[1758471318713,2.27718511,115570.0,115560.0,0.0104]
[1758471323434,1.48726511,115570.0,115560.0,0.0104]
[1758471323633,2.27674511,115570.0,115560.0,0.0104]
[1758471324536,2.00499334,115570.0,115560.0,0.0104]
[1758471327727,2.27682503,115570.0,115560.0,0.0104]
[1758471328434,2.00499334,115570.0,115560.0,0.0104]
[1758471328936,1.73316165,115570.0,115560.0,0.0104]
[1758471329124,2.00499334,115570.0,115560.0,0.0104]
[1758471330130,2.00493204,115570.0,115560.0,0.0104]
[1758471334235,2.00493204,115570.0,115560.0,0.01032]
[1758471335433,1.73310035,115570.0,115560.0,0.01032]
[1758471335639,2.00493204,115570.0,115560.0,0.01032]
[1758471336241,1.73310035,115570.0,115560.0,0.01032]
[1758471336538,2.00493204,115570.0,115560.0,0.01032]
[1758471337239,1.73310035,115570.0,115560.0,0.01032]
[1758471337437,2.00493204,115570.0,115560.0,0.01032]
[1758471345647,1.97962509,115570.0,115560.0,0.01032]
[1758471345834,2.00493118,115570.0,115560.0,0.01032]
[1758471361256,1.73309949,115570.0,115560.0,0.01032]
[1758471361558,1.21545118,115570.0,115560.0,0.01032]
[1758471361758,2.00849118,115570.0,115560.0,0.01032]
[1758471368661,1.73665949,115570.0,115560.0,0.01032]
[1758471368862,2.00849118,115570.0,115560.0,0.01032]
[1758471369358,1.73665949,115570.0,115560.0,0.01032]
[1758471369557,2.00849118,115570.0,115560.0,0.01032]
[1758471379969,1.73665949,115570.0,115560.0,0.01032]
[1758471380168,2.00849118,115570.0,115560.0,0.01032]
[1758471382364,2.00847854,115570.0,115560.0,0.01032]
[1758471382965,1.73664685,115570.0,115560.0,0.01032]
[1758471383164,2.00847854,115570.0,115560.0,0.01032]
[1758471386566,2.28036457,115570.0,115560.0,0.01032]
[1758471392067,2.28036457,115570.0,115560.0,0.00992]
[1758471392270,2.28036457,115570.0,115560.0,0.01032]
[1758471392673,0.03097,115550.0,115540.0,0.00086001]
[1758471392874,2.11170117,115550.0,115540.0,6.001e-05]
[1758471393076,2.11170117,115550.0,115540.0,0.00046001]
[1758471393382,2.11170117,115550.0,115540.0,6.001e-05]
[1758471393880,2.11186117,115550.0,115540.0,0.00046001]
[1758471394083,2.11214117,115550.0,115540.0,6.001e-05]
[1758471394284,2.11314117,115550.0,115540.0,0.00146001]
[1758471395180,2.18410117,115550.0,115540.0,0.00146001]
[1758471396178,2.18710117,115550.0,115540.0,0.01346001]
[1758471396577,2.19594529,115550.0,115540.0,0.01346001]
[1758471397085,2.26597498,115550.0,115540.0,0.01346001]
[1758471397275,2.26581498,115550.0,115540.0,0.01346001]
[1758471397681,1.47541498,115550.0,115540.0,0.01346001]
[1758471397886,2.26577498,115550.0,115540.0,0.01346001]
[1758471399984,1.47541498,115550.0,115540.0,0.01346001]
[1758471400286,2.26553498,115550.0,115540.0,0.01346001]
[1758471402380,2.53739384,115550.0,115520.0,0.03142973]
[1758471402580,0.65443886,115530.0,115520.0,0.05233973]
[1758471402778,1.44447886,115530.0,115520.0,0.05273973]
[1758471404077,1.71633772,115530.0,115520.0,0.05273973]
[1758471404383,2.08942772,115530.0,115520.0,0.01770973]
[1758471404579,2.11565366,115530.0,115520.0,0.01730973]
[1758471404786,2.09442772,115530.0,115520.0,0.03770973]
[1758471405583,2.11967879,115530.0,115520.0,0.03770973]
[1758471406278,2.11967879,115530.0,115520.0,0.02044]
[1758471406681,2.11967879,115530.0,115520.0,0.02004]
[1758471406883,2.11967879,115530.0,115520.0,0.02044]
[1758471407287,2.09442772,115530.0,115520.0,0.02044]
[1758471407885,2.11966762,115530.0,115520.0,0.02044]
[1758471408497,2.09442772,115530.0,115520.0,0.02044]
[1758471408782,2.11950365,115530.0,115520.0,0.02044]
[1758471409392,2.09426772,115530.0,115520.0,0.02044]
[1758471410891,2.09406772,115530.0,115520.0,0.02044]
[1758471413690,1.82220886,115530.0,115520.0,0.02044]
[1758471414289,1.84743802,115530.0,115520.0,0.02044]
[1758471419006,2.11929688,115530.0,115520.0,0.02044]
[1758471419205,2.11929688,115530.0,115520.0,0.02004]
[1758471419403,2.11929688,115530.0,115520.0,0.02044]
[1758471421504,2.36929688,115530.0,115520.0,0.02044]
[1758471421704,1.57961688,115530.0,115520.0,0.02044]
[1758471421904,2.36853688,115530.0,115520.0,0.02044]
[1758471422106,1.57961688,115530.0,115520.0,0.01725006]
[1758471422399,2.36853688,115530.0,115520.0,0.01725006]
[1758471424010,2.36849688,115530.0,115520.0,0.01725006]
[1758471424214,2.36849688,115530.0,115510.0,0.03826]
[1758471424411,0.92638772,115520.0,115510.0,0.03826]
[1758471424604,1.74097688,115520.0,115510.0,0.03816]
[1758471426112,1.74097688,115520.0,115510.0,0.04816]
[1758471426113,0.95561688,115520.0,115510.0,0.04816]
[1758471426317,1.74497688,115520.0,115510.0,0.04816]
[1758471427014,1.74697688,115520.0,115510.0,0.04816]
[1758471429213,0.95761688,115520.0,115510.0,0.04816]
[1758471429415,1.74657688,115520.0,115510.0,0.04816]
[1758471431614,1.74641688,115520.0,115510.0,0.04816]
[1758471433822,2.01827574,115520.0,115510.0,0.04856]
[1758471435423,2.08925574,115520.0,115510.0,0.04856]
[1758471435622,2.08925574,115520.0,115510.0,0.01045146]
[1758471435830,2.08925574,115520.0,115510.0,0.00040001]
[1758471436018,0.0323,115510.0,115500.0,0.01675593]
[1758471436221,0.96204688,115510.0,115500.0,0.01665593]
[1758471436621,1.23390574,115510.0,115500.0,0.01665593]
[1758471436926,2.02294574,115510.0,115500.0,0.0004]
[1758471437724,2.02794574,115510.0,115500.0,0.0004]
[1758471438915,2.02994574,115510.0,115500.0,0.0004]
[1758471440128,1.24090574,115510.0,115500.0,0.0004]
[1758471440324,2.02978574,115510.0,115500.0,0.0004]
[1758471441228,2.09960437,115510.0,115500.0,0.0004]
[1758471441635,2.09956437,115510.0,115500.0,0.0004]
[1758471443634,2.09964437,115510.0,115500.0,0.0004]
[1758471443834,1.82778551,115510.0,115500.0,0.0004]
[1758471445132,1.03886551,115510.0,115500.0,0.0004]
[1758471445333,1.82762551,115510.0,115500.0,0.0004]
[1758471445730,1.03886551,115510.0,115500.0,0.0004]
[1758471445930,1.82754551,115510.0,115500.0,0.0004]
[1758471446335,1.03886551,115510.0,115500.0,0.0004]
[1758471446538,1.03951081,115510.0,115500.0,0.0004]
[1758471446730,1.82807081,115510.0,115500.0,0.0004]
[1758471453739,1.03951081,115510.0,115500.0,0.0004]
[1758471454044,1.82767081,115510.0,115500.0,0.0004]
[1758471472350,1.5554893,115510.0,115500.0,0.0004]
[1758471475348,1.5555693,115510.0,115500.0,0.0004]
[1758471475747,1.82775081,115510.0,115500.0,0.0004]
[1758471479853,1.82775081,115510.0,115490.0,0.0001]
[1758471480052,0.92765302,115500.0,115490.0,0.0001]
[1758471480253,0.95288218,115500.0,115490.0,0.0004]
[1758471481449,0.95488218,115500.0,115490.0,0.0004]
[1758471482752,0.95988218,115500.0,115490.0,0.0004]
[1758471485558,1.03087218,115500.0,115490.0,0.0004]
[1758471487564,1.03087218,115500.0,115490.0,0.02341]
[1758471488357,1.03087218,115500.0,115490.0,0.0004]
[1758471508784,1.3031115,115500.0,115490.0,0.0004]
[1758471511488,1.6639115,115500.0,115490.0,0.0004]
[1758471517596,1.39171072,115500.0,115490.0,0.0004]
[1758471518094,2.4509115,115500.0,115490.0,0.0216]
[1758471519193,2.4509115,115500.0,115490.0,0.0004]
[1758471520299,1.6639115,115500.0,115490.0,0.0216]
[1758471520593,2.4509115,115500.0,115490.0,0.0216]
[1758471521196,2.4509115,115500.0,115490.0,0.0004]
[1758471521698,2.4509115,115500.0,115490.0,0.0216]
[1758471522694,1.6639115,115500.0,115490.0,0.0216]
[1758471522901,2.4509115,115500.0,115490.0,0.0216]
[1758471525101,2.4509115,115500.0,115490.0,0.0004]
[1758471538615,2.3799215,115500.0,115490.0,0.0004]
[1758471544718,2.3799215,115500.0,115490.0,0.02312]
[1758471548718,2.3799215,115500.0,115490.0,0.0004]
[1758471552926,2.3799215,115500.0,115490.0,0.02339]
[1758471556328,2.40003648,115500.0,115490.0,0.02339]
[1758471557025,2.1278357,115500.0,115490.0,0.02339]
[1758471558424,2.40003648,115500.0,115490.0,0.02339]
[1758471558624,2.1278357,115500.0,115490.0,0.02339]
[1758471560124,1.3408357,115500.0,115490.0,0.02339]
[1758471560331,1.58331414,115500.0,115490.0,0.03675]
[1758471560635,2.1277157,115500.0,115490.0,0.03675]
[1758471561129,2.1276757,115500.0,115490.0,0.03675]
[1758471568531,2.12757378,115500.0,115490.0,0.03675]
[1758471569136,1.85542396,115500.0,115490.0,0.03675]
[1758471572232,2.12757378,115500.0,115490.0,0.03675]
[1758471574939,2.12757378,115500.0,115490.0,0.02339]
[1758471576441,2.12757378,115500.0,115490.0,0.0004]
[1758471577135,2.12757378,115500.0,115480.0,0.02012642]
[1758471577339,0.65480982,115490.0,115480.0,0.04206642]
[1758471577539,0.68003898,115490.0,115480.0,0.04196642]
[1758471579044,0.68703898,115490.0,115480.0,0.04196642]
[1758471580640,0.66180982,115490.0,115480.0,0.04196642]
[1758471581342,0.68779791,115490.0,115480.0,0.04196642]
[1758471581537,0.68779791,115490.0,115480.0,0.04116642]
[1758471581737,0.68779791,115490.0,115480.0,0.04156642]
[1758471583046,0.68779791,115490.0,115480.0,0.04116642]
[1758471583240,0.68779791,115490.0,115480.0,0.04156642]
[1758471589148,0.70008791,115490.0,115480.0,0.00716642]
[1758471589552,0.70008791,115490.0,115480.0,0.00676642]
[1758471589752,0.70008791,115490.0,115480.0,0.00716642]
[1758471596158,0.70008791,115490.0,115480.0,0.02821642]
[1758471596661,1.48680791,115490.0,115480.0,0.02821642]
[1758471597171,0.70008791,115490.0,115480.0,0.02821642]
[1758471597458,1.48680791,115490.0,115480.0,0.02821642]
[1758471600658,1.48680791,115490.0,115480.0,0.00716642]
[1758471601056,1.48680791,115490.0,115480.0,0.00676642]
[1758471601255,1.48680791,115490.0,115480.0,0.00716642]
[1758471601860,1.48694992,115490.0,115480.0,0.00716642]
[1758471602457,1.2148001,115490.0,115480.0,0.00716642]
[1758471602657,1.48694992,115490.0,115480.0,0.00716642]
[1758471603761,1.73694992,115490.0,115480.0,0.00716642]
[1758471608569,1.73694992,115490.0,115480.0,0.00676642]
[1758471608866,1.73694992,115490.0,115480.0,0.00716642]
[1758471609967,1.73724361,115490.0,115480.0,0.00716642]
[1758471610164,1.73724361,115490.0,115480.0,0.00676642]
[1758471610366,1.73724361,115490.0,115480.0,0.00716642]
[1758471611069,1.48724361,115490.0,115470.0,0.11820272]
[1758471611262,0.65456982,115480.0,115470.0,0.11820272]
[1758471611463,0.68099361,115480.0,115470.0,0.11810272]
[1758471612558,0.68699361,115480.0,115470.0,0.11810272]
[1758471612763,0.68699361,115480.0,115470.0,0.14116272]
[1758471614171,0.68899361,115480.0,115470.0,0.14116272]
[1758471614468,0.69768811,115480.0,115470.0,0.14116272]
[1758471615570,0.76868811,115480.0,115470.0,0.14116272]
[1758471615971,0.76868811,115480.0,115470.0,0.11810272]
[1758471616974,1.04083793,115480.0,115470.0,0.11810272]
[1758471617571,0.76868811,115480.0,115470.0,0.11810272]
[1758471618767,1.04083793,115480.0,115470.0,0.11810272]
[1758471619075,0.76868811,115480.0,115470.0,0.11810272]
[1758471619672,1.04083793,115480.0,115470.0,0.11810272]
[1758471627174,1.04083793,115480.0,115470.0,0.11730272]
[1758471627468,1.04083793,115480.0,115470.0,0.11770272]
[1758471630570,1.3134196,115480.0,115470.0,0.11770272]
[1758471635577,1.3134196,115480.0,115470.0,0.11730272]
[1758471635782,2.0999796,115480.0,115470.0,0.13905272]
[1758471638483,2.0999796,115480.0,115470.0,0.15216272]
[1758471638484,1.3134196,115480.0,115470.0,0.15216272]
[1758471638678,1.82764583,115480.0,115470.0,0.15216272]
[1758471639380,1.04112583,115480.0,115470.0,0.15216272]
[1758471639579,1.82764583,115480.0,115470.0,0.15216272]
[1758471639984,1.04112583,115480.0,115470.0,0.15216272]
[1758471640188,1.82764583,115480.0,115470.0,0.15216272]
[1758471640574,0.76883206,115480.0,115470.0,0.40216272]
[1758471640887,1.82764583,115480.0,115470.0,0.40216272]
[1758471641583,1.91418703,115480.0,115470.0,0.40216272]
[1758471646087,1.12766703,115480.0,115470.0,0.40216272]
[1758471646286,1.91414703,115480.0,115470.0,0.40216272]
[1758471647390,1.12766703,115480.0,115470.0,0.40216272]
[1758471647589,1.91410703,115480.0,115470.0,0.40216272]
[1758471653187,1.12766703,115480.0,115470.0,0.15216272]
[1758471653390,1.91406703,115480.0,115470.0,0.15216272]
[1758471659298,1.36947949,115480.0,115470.0,0.15216272]
[1758471659594,1.91406703,115480.0,115470.0,0.15216272]
[1758471660096,1.36947949,115480.0,115470.0,0.15216272]
[1758471660300,1.91406703,115480.0,115470.0,0.15216272]
[1758471663299,1.88764324,115480.0,115470.0,0.15216272]
[1758471670206,1.10124324,115480.0,115470.0,0.15216272]
[1758471670498,1.88748324,115480.0,115470.0,0.15216272]
[1758471671004,1.10124324,115480.0,115470.0,0.15216272]
[1758471671204,1.91245758,115480.0,115470.0,0.15216272]
[1758471672404,1.88748324,115480.0,115470.0,0.15216272]
[1758471674711,1.912458,115480.0,115470.0,0.15216272]
[1758471675506,1.88748324,115480.0,115470.0,0.15216272]
[1758471676910,1.10124324,115480.0,115470.0,0.15216272]
[1758471677113,1.88744324,115480.0,115470.0,0.15216272]
[1758471680612,1.88744324,115480.0,115470.0,0.13486]
[1758471682511,1.91205981,115480.0,115470.0,0.13486]
[1758471685210,1.88744324,115480.0,115470.0,0.13486]
[1758471689122,1.3428557,115480.0,115470.0,0.13486]
[1758471689432,1.88744324,115480.0,115470.0,0.13486]
[1758471692624,1.61508796,115480.0,115470.0,0.13486]
[1758471702325,0.82888796,115480.0,115470.0,0.13486]
[1758471702523,0.1742357,115480.0,115470.0,0.67441217]
[1758471702721,0.9602757,115480.0,115470.0,0.40217991]
[1758471704329,0.9834457,115480.0,115470.0,0.40217991]
[1758471705723,1.25567796,115480.0,115470.0,0.40217991]
[1758471709035,0.9602357,115480.0,115470.0,0.67441217]
[1758471709434,0.9602357,115480.0,115470.0,0.7523705]
[1758471710240,0.9602357,115480.0,115470.0,1.1131705]
[1758471711139,0.9834057,115480.0,115470.0,0.84093824]
[1758471711343,0.9602357,115480.0,115470.0,0.84093824]
[1758471711635,0.1742357,115480.0,115470.0,0.84093824]
[1758471711837,0.9601957,115480.0,115470.0,0.84093824]
[1758471712738,0.9833657,115480.0,115470.0,0.84093824]
[1758471713040,0.9833657,115480.0,115470.0,0.76297991]
[1758471713238,1.25559796,115480.0,115470.0,0.76297991]
[1758471713845,0.9833657,115480.0,115470.0,0.76297991]
[1758471714040,1.25559796,115480.0,115470.0,0.76297991]
[1758471717247,0.9833657,115480.0,115470.0,0.76297991]
[1758471719344,0.9833657,115480.0,115470.0,0.84093824]
[1758471719939,0.9833657,115480.0,115470.0,0.76297991]
[1758471727657,0.9833657,115480.0,115470.0,0.84093824]
[1758471728162,0.9833657,115480.0,115470.0,1.1131705]
[1758471730762,0.9840857,115480.0,115470.0,1.1131705]
[1758471731058,0.9840857,115480.0,115470.0,1.03521217]
[1758471731251,0.9840857,115480.0,115470.0,1.1131705]
[1758471732366,0.9840857,115480.0,115470.0,0.84093824]
[1758471732662,0.9840857,115480.0,115470.0,1.1131705]
[1758471738172,0.9840857,115480.0,115470.0,0.76297991]
[1758471738366,0.9840857,115480.0,115470.0,0.84093824]
[1758471738870,0.9840857,115480.0,115470.0,0.48013824]
[1758471739074,0.9840857,115480.0,115470.0,0.84093824]
[1758471740467,1.25631796,115480.0,115470.0,0.84093824]
[1758471743471,0.46963796,115480.0,115470.0,0.84093824]
[1758471743670,1.25583796,115480.0,115470.0,0.84093824]
[1758471744169,0.9836057,115480.0,115470.0,0.84093824]
[1758471744372,0.9835257,115480.0,115470.0,0.84093824]
[1758471744866,0.9834857,115480.0,115470.0,0.84093824]
[1758471752175,0.9834857,115480.0,115470.0,0.76297991]
[1758471752574,1.25571796,115480.0,115470.0,0.76297991]
[1758471754175,1.25571796,115480.0,115470.0,0.84093824]
[1758471754677,1.25565594,115480.0,115470.0,1.11310848]
[1758471759379,1.25565594,115480.0,115470.0,0.86310848]
[1758471759881,0.9834857,115480.0,115470.0,0.86310848]
[1758471760076,1.25565594,115480.0,115470.0,0.86310848]
[1758471760382,0.9834857,115480.0,115470.0,0.86310848]
[1758471760681,1.25565594,115480.0,115470.0,0.86310848]
[1758471761278,0.9834857,115480.0,115470.0,0.86310848]
[1758471761472,0.9834857,115480.0,115470.0,0.59093824]
[1758471761473,1.52782618,115480.0,115470.0,0.59093824]
[1758471761977,1.25565594,115480.0,115470.0,0.86310848]
[1758471762173,1.25565594,115480.0,115470.0,0.78515015]
[1758471763682,1.52782618,115480.0,115470.0,0.78515015]
[1758471763883,1.25565594,115480.0,115470.0,0.78515015]
[1758471767384,1.25565594,115480.0,115470.0,0.51297991]
[1758471767586,1.25565594,115480.0,115470.0,0.78515015]
[1758471769388,1.25557594,115480.0,115470.0,0.78515015]
[1758471769786,1.25557594,115480.0,115470.0,0.42435015]
[1758471773589,1.25557594,115480.0,115470.0,0.15217991]
[1758471773789,1.25557594,115480.0,115470.0,0.42435015]
[1758471774185,1.52774618,115480.0,115470.0,0.15217991]
[1758471775286,1.52774618,115480.0,115470.0,0.42435015]
[1758471775993,1.52774618,115480.0,115470.0,0.15217991]
[1758471776191,1.52774618,115480.0,115470.0,0.42435015]
[1758471777394,1.25557594,115480.0,115470.0,0.42435015]
[1758471778694,1.52774618,115480.0,115470.0,0.42435015]
[1758471780400,0.9834057,115480.0,115470.0,0.42435015]
[1758471780593,1.52774618,115480.0,115470.0,0.42435015]
[1758471782702,1.52774618,115480.0,115470.0,0.15217991]
[1758471783399,0.9834057,115480.0,115470.0,0.15217991]
[1758471783699,1.25557594,115480.0,115470.0,0.42435015]
[1758471784198,1.25545594,115480.0,115470.0,0.42435015]
[1758471786602,1.52762618,115480.0,115470.0,0.42435015]
[1758471787400,0.1972057,115480.0,115470.0,0.42435015]
[1758471787604,1.25541594,115480.0,115470.0,0.42435015]
[1758471788503,1.25541594,115480.0,115470.0,0.15217991]
[1758471788801,1.25541594,115480.0,115470.0,0.42435015]
[1758471794509,1.52758618,115480.0,115470.0,0.42435015]
[1758471795099,1.88838618,115480.0,115470.0,0.42435015]
[1758471799210,1.88838618,115480.0,115470.0,0.42431015]
[1758471800314,1.3440457,115480.0,115470.0,0.42431015]
[1758471800519,1.88838618,115480.0,115470.0,0.42431015]
[1758471802409,1.88838618,115480.0,115470.0,0.15213991]
[1758471802609,1.88838618,115480.0,115470.0,0.42431015]
[1758471803910,1.88838618,115480.0,115470.0,0.15213991]
[1758471804112,1.88838618,115480.0,115470.0,0.42431015]
[1758471804410,1.88838618,115480.0,115470.0,0.15213991]
[1758471809804,2.13838618,115480.0,115470.0,0.15213991]
[1758471810116,2.77135642,115480.0,115470.0,0.11727991]
[1758471810417,2.77135642,115480.0,115470.0,0.11767991]
[1758471810611,2.77135642,115480.0,115470.0,0.11727991]
[1758471810820,2.77135642,115480.0,115470.0,0.11767991]
[1758471811113,2.77135642,115480.0,115470.0,0.11727991]
[1758471811310,2.77135642,115480.0,115470.0,0.11767991]
[1758471811311,2.79504298,115480.0,115470.0,0.11767991]
[1758471813016,2.79504298,115480.0,115470.0,0.11727991]
[1758471813230,2.79504298,115480.0,115470.0,0.11767991]
[1758471814509,2.25082329,115480.0,115470.0,0.11767991]
[1758471814709,2.52311432,115480.0,115470.0,0.11767991]
[1758471815322,2.49942776,115480.0,115470.0,0.11767991]
[1758471815517,2.22713673,115480.0,115470.0,0.11767991]
[1758471817413,1.44109673,115480.0,115470.0,0.11767991]